bitfinex/quotes_ETHUSD_20250629
["timestamp","ask_amount","ask_price","bid_price","bid_amount"]
[1751211572761,0.11124782,2443.8,2443.7,1.68]
[1751211573054,0.11124782,2443.8,2443.7,8.266]
[1751211573626,0.11124782,2443.8,2443.7,1.68]
[1751211573931,0.55195575,2443.8,2443.7,8.266]
[1751211574546,0.55195575,2443.8,2443.7,1.68]
[1751211574745,0.55195575,2443.8,2443.7,8.266]
[1751211575451,0.11124782,2443.8,2443.7,8.266]
[1751211586591,0.11124782,2443.8,2443.7,12.35815533]
[1751211593975,0.11124782,2443.8,2443.7,12.56215533]
[1751211599403,0.11124782,2443.8,2443.7,13.38585533]
[1751211606329,0.11124782,2443.8,2443.7,12.55215533]
[1751211620826,0.11124782,2443.8,2443.7,4.29615533]
[1751211621025,0.11124782,2443.8,2443.7,5.97215533]
[1751211621239,0.11124782,2443.8,2443.7,12.55015533]
[1751211627335,0.11124782,2443.8,2443.7,4.29615533]
[1751211627537,0.11124782,2443.8,2443.7,12.54715533]
[1751211638070,0.11124782,2443.8,2443.7,12.54415533]
[1751211647850,0.11124782,2443.8,2443.7,4.29615533]
[1751211648060,0.11124782,2443.8,2443.7,12.54315533]
[1751211653462,0.11124782,2443.8,2443.7,21.63315274]
[1751211653843,0.11124782,2443.8,2443.7,15.07081193]
[1751211667312,0.11124782,2443.8,2443.7,25.62081193]
[1751211671007,0.11124782,2443.8,2443.7,46.73049393]
[1751211671513,0.11124782,2443.8,2443.7,45.76597093]
[1751211671897,0.11124782,2443.8,2443.7,42.69064693]
[1751211672973,0.11124782,2443.8,2443.7,38.82874693]
[1751211674015,0.11124782,2443.8,2443.7,51.85223593]
[1751211674196,0.11124782,2443.8,2443.7,44.85223593]
[1751211674505,0.11124782,2443.8,2443.7,19.54243193]
[1751211674807,0.11124782,2443.8,2443.7,29.22028593]
[1751211675978,0.11124782,2443.8,2443.7,25.61681193]
[1751211676178,0.11124782,2443.8,2443.7,33.89817193]
[1751211678314,0.11124782,2443.8,2443.7,39.33817193]
[1751211679413,0.11124782,2443.8,2443.7,51.68885793]
[1751211680399,0.11124782,2443.8,2443.7,52.50654393]
[1751211681221,0.11124782,2443.8,2443.7,36.59284393]
[1751211681406,0.11124782,2443.8,2443.7,36.39284393]
[1751211682426,0.11124782,2443.8,2443.7,55.61681193]
[1751211687441,0.11124782,2443.8,2443.7,25.61681193]
[1751211687643,0.11124782,2443.8,2443.7,55.61681193]
[1751211689141,0.11124782,2443.8,2443.7,55.01436993]
[1751211689941,0.11124782,2443.8,2443.7,55.00497093]
[1751211690147,0.11124782,2443.8,2443.7,53.51207093]
[1751211691046,0.11124782,2443.8,2443.7,53.50497093]
[1751211691447,0.11124782,2443.8,2443.7,52.68688893]
[1751211691946,0.11124782,2443.8,2443.7,25.61681193]
[1751211692126,0.11124782,2443.8,2443.7,52.68028893]
[1751211693049,0.11124782,2443.8,2443.7,53.54337093]
[1751211694051,0.11124782,2443.8,2443.7,25.61681193]
[1751211694238,0.11124782,2443.8,2443.7,55.61681193]
[1751211694444,0.11124782,2443.8,2443.7,53.53837093]
[1751211695349,0.11124782,2443.8,2443.7,55.61681193]
[1751211695555,0.11124782,2443.8,2443.7,52.67496093]
[1751211695851,0.11124782,2443.8,2443.7,70.43995301]
[1751211696419,0.11124782,2443.8,2443.7,50.40083301]
[1751211696655,0.11124782,2443.8,2443.7,47.29181901]
[1751211697532,0.11124782,2443.8,2443.7,50.08769401]
[1751211698555,0.11124782,2443.8,2443.7,49.73203601]
[1751211699553,0.11124782,2443.8,2443.7,48.84011201]
[1751211699857,0.11124782,2443.8,2443.7,46.38880901]
[1751211700640,0.11124782,2443.8,2443.7,67.43753401]
[1751211701659,0.11124782,2443.8,2443.7,43.38180401]
[1751211701861,0.11124782,2443.8,2443.7,68.25567701]
[1751211702863,0.11124782,2443.8,2443.7,68.21067701]
[1751211703745,0.11124782,2443.8,2443.7,43.38180401]
[1751211703949,0.11124782,2443.8,2443.7,71.15253401]
[1751211704961,0.11124782,2443.8,2443.7,71.97067701]
[1751211706058,0.11124782,2443.8,2443.7,43.38180401]
[1751211706248,0.11124782,2443.8,2443.7,73.30367701]
[1751211706750,0.11124782,2443.8,2443.7,71.97067701]
[1751211707262,0.11124782,2443.8,2443.7,71.82067701]
[1751211707849,0.11124782,2443.8,2443.7,71.00253401]
[1751211708270,0.11124782,2443.8,2443.7,64.00253401]
[1751211708763,0.11124782,2443.8,2443.7,50.66153401]
[1751211709453,0.11124782,2443.8,2443.7,69.25816501]
[1751211709641,0.11124782,2443.8,2443.7,79.07316501]
[1751211710244,0.11124782,2443.8,2443.7,78.86916501]
[1751211710540,0.11124782,2443.8,2443.7,82.99280401]
[1751211712865,0.11124782,2443.8,2443.7,80.67340201]
[1751211713162,0.11124782,2443.8,2443.7,77.99151501]
[1751211713462,0.11124782,2443.8,2443.7,81.49151501]
[1751211713643,0.11124782,2443.8,2443.7,77.99151501]
[1751211714567,0.11124782,2443.8,2443.7,81.53651501]
[1751211715401,0.11124782,2443.8,2443.7,78.91051501]
[1751211716093,0.11124782,2443.8,2443.7,78.13740201]
[1751211716690,0.11124782,2443.8,2443.7,52.99280401]
[1751211716896,0.11124782,2443.8,2443.7,78.13740201]
[1751211717294,0.11124782,2443.8,2443.7,52.99280401]
[1751211717493,0.11124782,2443.8,2443.7,78.95551501]
[1751211718401,0.11124782,2443.8,2443.7,75.45551501]
[1751211718768,0.11124782,2443.8,2443.7,78.87760001]
[1751211719074,0.11124782,2443.8,2443.7,75.37760001]
[1751211719898,0.11124782,2443.8,2443.7,52.99280401]
[1751211720083,0.11124782,2443.8,2443.7,78.83260001]
[1751211720287,0.11124782,2443.8,2443.7,71.21848701]
[1751211720889,0.11124782,2443.8,2443.7,53.19680401]
[1751211721095,0.11124782,2443.8,2443.7,58.45874701]
[1751211721293,0.11124782,2443.8,2443.7,38.74691193]
[1751211721498,0.11124782,2443.8,2443.7,37.00115533]
[1751211725605,0.11124782,2443.8,2443.7,38.90865137]
[1751211727713,6.55849604,2444.8,2444.7,58.69710068]
[1751211727911,6.55849604,2444.8,2444.7,65.26710068]
[1751211730180,6.55849604,2444.8,2444.7,58.69710068]
[1751211730386,8.03237313,2444.8,2444.7,65.26710068]
[1751211743655,12.12268726,2444.8,2444.7,65.26710068]
[1751211744420,8.03237313,2444.8,2444.7,65.26710068]
[1751211746118,12.12268726,2444.8,2444.7,65.26710068]
[1751211746457,8.03237313,2444.8,2444.7,65.26710068]
[1751211748588,1.47487709,2444.8,2444.7,65.26710068]
[1751211748766,0.001,2444.8,2444.7,69.35758212]
[1751211750338,0.001,2444.8,2444.7,69.56158212]
[1751211756124,0.001,2444.8,2444.7,70.36198212]
[1751211760263,0.001,2444.8,2444.7,71.26198212]
[1751211760542,0.001,2444.8,2444.7,75.27530636]
[1751211761244,0.001,2444.8,2444.7,16.57820568]
[1751211761542,0.001,2444.8,2444.7,12.56488144]
[1751211763851,0.001,2444.8,2444.7,11.66488144]
[1751211769410,0.001,2444.8,2444.7,5.96448144]
[1751211769756,0.001,2444.8,2444.7,8.239]
[1751211771578,8.94563057,2445.9,2445.5,27.20800523]
[1751211771876,13.45524049,2445.6,2445.5,27.20800523]
[1751211773373,43.45524049,2445.6,2445.5,27.20800523]
[1751211773673,53.40524049,2445.6,2445.5,27.20800523]
[1751211774735,23.40524049,2445.6,2445.5,27.20800523]
[1751211775807,20.6471509,2445.6,2445.5,27.20800523]
[1751211775993,22.70435281,2445.6,2445.5,27.20800523]
[1751211777470,23.25435281,2445.6,2445.5,27.20800523]
[1751211779001,23.25435281,2445.6,2445.5,22.9567544]
[1751211779907,26.06606819,2445.6,2445.5,22.9567544]
[1751211780721,4.09044544,2444.8,2444.6,1.672]
[1751211780870,4.09044544,2444.8,2444.6,0.002]
[1751211780871,14.29448144,2444.7,2444.6,0.002]
[1751211781968,14.84448144,2444.7,2444.6,0.002]
[1751211782275,16.90168335,2444.7,2444.6,0.002]
[1751211788901,46.90168335,2444.7,2444.6,0.002]
[1751211791994,16.90168335,2444.7,2444.6,0.002]
[1751211792343,54.82168335,2444.7,2444.6,0.002]
[1751211797861,44.64064877,2444.6,2444.5,0.002]
[1751211798014,63.96825805,2444.6,2444.5,0.002]
[1751211799657,14.64198788,2443.8,2443.7,0.002]
[1751211801848,14.94900469,2443.8,2443.7,0.002]
[1751211802052,17.0062066,2443.8,2443.7,0.002]
[1751211825761,23.57135615,2443.8,2443.7,0.002]
[1751211829861,26.38805582,2443.8,2443.7,0.002]
[1751211833768,34.30805582,2443.8,2443.7,0.002]
[1751211836808,64.30805582,2443.8,2443.7,0.002]
[1751211838505,68.61505582,2443.8,2443.7,0.002]
[1751211838706,64.30805582,2443.8,2443.7,0.002]
[1751211840294,34.30805582,2443.8,2443.7,0.002]
[1751211840625,64.30805582,2443.8,2443.7,0.002]
[1751211846640,70.88105582,2443.8,2443.7,0.002]
[1751211848749,75.18805582,2443.8,2443.7,0.002]
[1751211849419,70.88105582,2443.8,2443.7,0.002]
[1751211849813,68.06601934,2443.8,2443.7,0.002]
[1751211851107,63.16401934,2443.8,2443.7,0.002]
[1751211851342,69.73701934,2443.8,2443.7,0.002]
[1751211851503,20.94301934,2443.8,2443.7,0.002]
[1751211851708,25.45881743,2443.8,2443.7,0.7594]
[1751211851911,29.44200469,2443.8,2443.7,0.7594]
[1751211858863,22.86900469,2443.8,2443.7,0.7594]
[1751211861454,14.94900469,2443.8,2443.7,0.7594]
[1751211862848,10.0,2443.8,2443.7,0.7594]
[1751211863052,10.204,2443.8,2443.7,0.7594]
[1751211863544,14.29598788,2443.8,2443.7,0.7594]
[1751211873962,14.24598788,2443.8,2443.7,0.7594]
[1751211880969,16.11098152,2443.8,2443.7,0.002]
[1751211881874,22.67664017,2443.8,2443.7,0.002]
[1751211883769,16.11098152,2443.8,2443.7,0.002]
[1751211892494,16.66098152,2443.8,2443.7,0.002]
[1751211897995,16.66198152,2443.8,2443.7,0.002]
[1751211900714,16.66198152,2443.8,2442.7,0.002]
[1751211900715,4.643663,2442.8,2442.7,0.002]
[1751211900918,4.643663,2442.8,2442.3,0.002]
[1751211900919,10.754,2442.7,2442.3,0.002]
[1751211901221,4.09550722,2441.7,2441.6,0.002]
[1751211901402,10.0,2441.7,2441.6,0.002]
[1751211901716,14.09550722,2441.7,2441.6,0.002]
[1751211902076,14.09550722,2441.7,2440.8,0.001]
[1751211902077,4.09601048,2441.4,2440.8,0.001]
[1751211902278,54.024713,2441.4,2440.8,0.001]
[1751211902514,14.09668168,2441.0,2440.8,0.001]
[1751211902810,15.91600284,2441.0,2440.8,0.001]
[1751211903278,53.13200284,2441.0,2440.8,0.001]
[1751211903686,53.13200284,2441.0,2440.3,0.001]
[1751211903687,4.64836065,2440.0,2439.9,0.001]
[1751211903996,4.64836065,2440.0,2439.8,0.001]
[1751211903997,44.64852862,2439.9,2439.8,0.001]
[1751211904197,14.09886461,2439.7,2439.5,0.001]
[1751211904387,60.71956713,2439.7,2439.5,0.001]
[1751211904592,60.88369413,2439.7,2439.5,0.001]
[1751211904832,44.81299161,2439.7,2439.5,0.001]
[1751211905112,14.95259556,2439.7,2439.5,0.001]
[1751211905314,16.03253966,2439.7,2439.5,0.001]
[1751211905611,10.55,2439.4,2438.4,0.7677]
[1751211905811,34.91176393,2439.4,2438.4,0.7677]
[1751211906223,64.91176393,2439.4,2438.4,0.7677]
[1751211907581,44.64936869,2439.4,2438.4,4.86861672]
[1751211907781,46.46868985,2439.4,2438.4,4.86861672]
[1751211907989,54.88568985,2439.4,2438.4,4.86861672]
[1751211908217,54.88568985,2439.4,2438.4,0.7677]
[1751211908582,54.88568985,2439.4,2438.4,4.86869834]
[1751211908789,54.88568985,2439.4,2438.4,0.7677]
[1751211909213,68.44708509,2439.4,2438.4,0.7677]
[1751211909614,54.88368985,2439.4,2438.4,0.7677]
[1751211909927,16.46868985,2439.4,2438.7,4.10038632]
[1751211910112,54.88968985,2439.4,2438.7,4.10038632]
[1751211910308,54.88968985,2439.4,2438.7,4.10044802]
[1751211910509,54.88968985,2439.4,2438.8,4.10032748]
[1751211911132,54.88968985,2439.4,2438.9,4.10015436]
[1751211911133,42.36932116,2439.4,2438.9,4.10015436]
[1751211911432,42.36932116,2439.4,2438.8,4.10031829]
[1751211911433,54.88868985,2439.4,2438.8,4.10031829]
[1751211911820,54.88868985,2439.4,2438.7,4.10046691]
[1751211912127,46.46868985,2439.4,2438.8,4.10035025]
[1751211912327,50.78732116,2439.4,2438.9,4.10008951]
[1751211912533,20.78732116,2439.4,2438.9,4.10008951]
[1751211912740,12.36932116,2439.4,2438.9,4.10008951]
[1751211912937,20.78732116,2439.4,2438.9,4.10008951]
[1751211913102,24.88668985,2439.4,2438.8,4.10030578]
[1751211913298,18.16768985,2439.4,2438.6,4.100659]
[1751211913526,16.46868985,2439.4,2438.7,4.10045915]
[1751211913730,16.46868985,2439.4,2438.8,4.10035343]
[1751211913949,24.88668985,2439.4,2438.9,4.10013397]
[1751211914304,20.78732116,2439.4,2439.0,4.10002127]
[1751211914636,19.08732116,2439.4,2439.0,4.10002127]
[1751211914822,20.78632116,2439.4,2439.0,4.09995815]
[1751211915000,20.78632116,2439.4,2439.1,0.8309]
[1751211915399,18.16768985,2439.4,2438.8,4.93118203]
[1751211915700,14.06832116,2439.4,2438.9,4.1001108]
[1751211915900,14.06832116,2439.4,2439.0,4.10002681]
[1751211916306,12.36932116,2439.4,2439.1,4.09974922]
[1751211916505,12.36932116,2439.4,2439.0,4.0999306]
[1751211916506,10.55,2439.4,2439.0,4.0999306]
[1751211917142,10.0,2439.4,2439.1,4.09985808]
[1751211917305,10.0,2439.4,2439.2,4.09962929]
[1751211917505,10.0,2439.4,2438.9,4.10015045]
[1751211917727,10.0,2439.4,2439.0,4.09998886]
[1751211918314,10.0,2439.4,2439.1,4.09984017]
[1751211918745,10.0,2439.4,2439.2,4.09968459]
[1751211918915,10.0,2439.4,2439.1,4.09979024]
[1751211919312,10.0,2439.4,2439.0,4.0999605]
[1751211920041,14.09936869,2439.4,2438.9,4.10010661]
[1751211920537,14.64936869,2439.4,2438.8,0.8309]
[1751211920742,17.19592753,2439.4,2438.8,4.93126246]
[1751211921939,17.19592753,2439.4,2438.8,0.8309]
[1751211922449,23.90892753,2439.4,2438.8,4.93127648]
[1751211924519,23.90892753,2439.4,2438.5,4.89298247]
[1751211924742,37.47032277,2439.4,2438.5,4.89298247]
[1751211925654,23.90892753,2439.4,2438.6,4.10071101]
[1751211925830,23.90592753,2439.4,2438.7,4.10052409]
[1751211926519,23.90592753,2439.4,2438.5,4.89297941]
[1751211927650,23.90592753,2439.4,2438.5,0.7922]
[1751211927854,33.32254356,2439.4,2438.5,4.89306317]
[1751211928223,33.32254356,2439.4,2438.5,0.7922]
[1751211929320,63.32254356,2439.4,2438.5,0.7922]
[1751211929858,67.4688845,2439.4,2438.5,0.7922]
[1751211930160,67.4688845,2439.4,2438.3,0.31620217]
[1751211930319,68.04415065,2439.4,2438.3,0.11140217]
[1751211930521,68.2843845,2439.4,2438.3,0.11140217]
[1751211930735,67.4688845,2439.4,2438.3,0.11140217]
[1751211931524,4.10089326,2438.5,2438.3,0.11140217]
[1751211931725,0.2048,2438.4,2438.3,0.11140217]
[1751211933122,14.30584986,2438.4,2438.3,0.11140217]
[1751211933551,10.2048,2438.4,2438.3,0.11140217]
[1751211935153,10.2048,2438.4,2438.3,4.21262023]
[1751211935681,10.0,2438.4,2438.3,0.11140217]
[1751211935845,10.0,2438.4,2438.3,4.21262023]
[1751211937891,10.0,2438.4,2438.3,0.11140217]
[1751211938043,10.0,2438.4,2438.3,4.21262023]
[1751211938245,10.0,2438.8,2438.4,4.10104986]
[1751211938444,0.2048,2438.7,2438.5,4.10075737]
[1751211938748,0.2048,2438.7,2438.6,4.10071352]
[1751211938943,4.09961792,2439.3,2438.8,4.10026752]
[1751211939171,0.2048,2439.0,2438.8,4.10026752]
[1751211939472,14.10016963,2439.0,2438.6,0.8155]
[1751211939770,0.2048,2438.9,2438.6,4.9160836]
[1751211940479,0.2048,2438.9,2438.7,4.10053074]
[1751211941280,0.2048,2438.9,2438.7,4.10042109]
[1751211941577,0.2048,2438.9,2438.8,4.10037723]
[1751211943577,0.2048,2438.9,2438.7,4.10046842]
[1751211943982,0.2048,2438.9,2438.6,4.91611967]
[1751211945077,5.73555932,2438.9,2438.6,0.8155]
[1751211945285,0.2048,2438.6,2438.4,0.8239]
[1751211948283,0.2048,2438.6,2438.4,4.92494293]
[1751211951086,0.2048,2438.6,2438.4,0.8239]
[1751211951384,0.2048,2438.6,2438.4,4.92494296]
[1751211951602,0.2048,2438.6,2438.4,0.8239]
[1751211952404,0.2048,2438.5,2438.3,0.11140217]
[1751211952558,0.2048,2438.5,2438.3,4.21254133]
[1751211953159,0.2048,2438.5,2438.3,0.11140217]
[1751211953504,0.2048,2438.5,2438.3,4.21261307]
[1751211955158,0.2048,2438.5,2438.4,4.10104986]
[1751211957755,12.301,2439.0,2438.3,0.11140217]
[1751211957959,0.2048,2438.6,2438.5,4.10080808]
[1751211961012,0.2048,2438.6,2438.4,4.10099241]
[1751211962389,10.2048,2438.6,2438.3,4.21260579]
[1751211962594,0.2048,2438.6,2438.3,4.21260579]
[1751211962804,4.30561138,2438.6,2438.3,0.11140217]
[1751211962990,1.59417203,2438.5,2438.3,0.11140217]
[1751211963702,0.2048,2438.5,2438.4,4.10104986]
[1751211967510,0.2048,2438.5,2438.3,4.21254438]
[1751211968176,0.2048,2438.5,2438.3,0.11140217]
[1751211972723,14.30569392,2438.5,2438.3,0.11140217]
[1751211972929,14.10104986,2438.4,2438.3,0.11140217]
[1751211973091,16.56517654,2438.4,2438.3,0.11140217]
[1751211973995,59.84917654,2438.4,2438.3,0.11140217]
[1751211974197,14.6525641,2437.5,2437.4,0.2217911]
[1751211974403,25.80484018,2437.5,2437.4,0.2217911]
[1751211974608,27.11463453,2437.5,2437.4,0.2217911]
[1751211974810,15.96235845,2437.5,2437.4,0.2217911]
[1751211975017,11.735,2437.5,2437.4,0.2217911]
[1751211975926,16.3875641,2437.5,2437.4,0.2217911]
[1751211977098,10.0,2437.5,2437.4,0.2217911]
[1751211977298,11.813,2437.5,2437.4,0.2217911]
[1751211977498,15.9155641,2437.5,2437.4,0.2217911]
[1751211977698,16.22518949,2437.5,2437.4,0.2217911]
[1751211979726,16.77518949,2437.5,2437.4,0.2217911]
[1751211981909,14.41218949,2437.5,2437.4,0.2217911]
[1751211982124,23.04218949,2437.5,2437.4,0.2217911]
[1751211982618,10.30962539,2437.5,2437.4,0.2217911]
[1751211982831,11.813,2437.5,2437.4,0.2217911]
[1751211983030,1.813,2437.5,2437.4,0.2217911]
[1751211983606,2.6758,2437.5,2437.4,0.2217911]
[1751211983934,1.813,2438.1,2437.5,4.10243221]
[1751211984137,0.2048,2437.8,2437.4,1.0387911]
[1751211984432,13.51941374,2437.8,2437.4,1.0387911]
[1751211984632,0.2048,2437.5,2437.4,0.2217911]
[1751211985648,14.3073641,2437.5,2437.4,0.2217911]
[1751211986140,10.2048,2437.5,2437.4,0.2217911]
[1751211987114,18.8398,2437.5,2437.4,0.2217911]
[1751211988652,22.9423641,2437.5,2437.4,0.2217911]
[1751211988951,23.4923641,2437.5,2437.4,0.2217911]
[1751211991148,32.90964018,2437.5,2437.4,0.2217911]
[1751211997130,24.27464018,2437.5,2437.4,0.2217911]
[1751211997335,32.89164018,2437.5,2437.4,0.2217911]
[1751211998458,24.27464018,2437.5,2437.4,0.2217911]
[1751211998638,32.88964018,2437.5,2437.4,0.2217911]
[1751212002147,24.27464018,2437.5,2437.4,0.2217911]
[1751212002549,23.4663641,2437.5,2437.4,0.2217911]
[1751212002849,14.8573641,2437.5,2437.4,0.2217911]
[1751212003065,23.4653641,2437.5,2437.4,0.2217911]
[1751212003498,14.8573641,2437.5,2437.4,0.2217911]
[1751212003700,23.4653641,2437.5,2437.4,0.2217911]
[1751212003892,23.4633641,2437.5,2437.4,0.2217911]
[1751212004232,14.8573641,2437.5,2437.4,0.2217911]
[1751212004367,13.4633641,2437.5,2437.4,0.2217911]
[1751212004568,23.4633641,2437.5,2437.4,0.2217911]
[1751212005372,10.2048,2437.5,2437.4,0.2217911]
[1751212005576,0.2048,2437.5,2437.4,0.2217911]
[1751212006061,0.2048,2437.5,2437.4,4.32452351]
[1751212006261,10.2048,2437.5,2437.4,4.32452351]
[1751212006662,10.2048,2437.5,2437.4,0.2217911]
[1751212006899,0.2048,2437.5,2437.4,4.32452351]
[1751212007068,10.2048,2437.6,2437.5,0.8056]
[1751212007262,10.2048,2437.6,2437.5,4.9081641]
[1751212008085,10.2048,2437.6,2437.5,0.8056]
[1751212008484,14.1025641,2437.5,2437.4,0.2217911]
[1751212008688,20.8915641,2437.5,2437.4,0.2217911]
[1751212008894,21.4415641,2437.5,2437.4,0.2217911]
[1751212017192,51.4415641,2437.5,2437.4,0.2217911]
[1751212017393,52.92678249,2437.5,2437.4,0.2217911]
[1751212023214,0.55,2437.2,2436.7,0.11040217]
[1751212023427,4.10290075,2437.3,2436.7,0.11040217]
[1751212023428,14.10374143,2436.9,2436.7,0.11040217]
[1751212023595,20.87074261,2436.8,2436.7,0.11040217]
[1751212023995,21.42074261,2436.8,2436.7,0.11040217]
[1751212024194,14.65374261,2436.8,2436.7,0.11040217]
[1751212024414,23.21374261,2436.8,2436.7,0.11040217]
[1751212024698,10.0,2436.8,2436.7,0.94210217]
[1751212024908,16.768,2436.8,2436.7,0.94210217]
[1751212025314,20.87174261,2436.8,2436.7,0.94210217]
[1751212026224,16.768,2436.8,2436.7,0.94210217]
[1751212026429,10.0,2436.8,2436.7,0.94210217]
[1751212028427,12.26594672,2436.8,2436.7,0.94210217]
[1751212028731,10.0,2436.8,2436.7,5.04601319]
[1751212028917,0.31143965,2437.8,2436.8,0.8317]
[1751212029233,10.0,2437.4,2437.1,0.8317]
[1751212029538,9.41927608,2437.9,2437.2,4.10301483]
[1751212029739,4.10240785,2437.6,2437.1,4.93485078]
[1751212029904,10.0,2437.4,2437.1,4.93493509]
[1751212030096,6.765,2437.4,2437.1,0.8317]
[1751212030299,4.10274826,2437.4,2437.1,0.8317]
[1751212030549,14.10264223,2437.5,2437.1,0.8317]
[1751212030825,6.764,2437.4,2437.1,0.8317]
[1751212031031,10.0,2437.7,2437.1,4.93492993]
[1751212031218,14.10249443,2437.6,2437.1,4.93484768]
[1751212031412,10.0,2437.4,2437.1,4.93484768]
[1751212031836,0.21603654,2437.9,2437.6,4.10234863]
[1751212032130,0.002,2437.9,2437.5,4.86435923]
[1751212032343,16.763,2437.9,2437.5,0.7618]
[1751212032938,20.86491984,2437.9,2437.5,0.7618]
[1751212033231,0.2048,2437.8,2437.5,0.7618]
[1751212034199,0.2048,2437.8,2437.5,4.86435342]
[1751212035131,0.2048,2437.8,2437.5,0.7618]
[1751212039345,10.0,2437.7,2437.5,0.7618]
[1751212039553,10.2048,2437.7,2437.5,0.7618]
[1751212040064,0.2048,2437.7,2437.5,0.7618]
[1751212040357,10.2048,2437.7,2437.5,0.7618]
[1751212041749,0.2048,2437.7,2437.5,0.7618]
[1751212041952,0.2048,2437.7,2437.6,4.10239579]
[1751212042252,0.2048,2437.7,2437.5,4.86431082]
[1751212042417,4.30712298,2437.7,2437.5,0.7618]
[1751212043038,14.30712298,2437.7,2437.5,0.7618]
[1751212044556,10.0,2437.6,2437.5,0.7618]
[1751212045622,4.10239579,2437.6,2437.4,0.001]
[1751212045822,4.1025641,2437.5,2437.4,0.001]
[1751212046047,4.3073641,2437.5,2437.4,0.001]
[1751212047325,14.3073641,2437.5,2437.4,0.001]
[1751212047559,16.24016574,2437.5,2437.4,0.001]
[1751212047746,23.53416574,2437.5,2437.4,0.001]
[1751212053956,53.53416574,2437.5,2437.4,0.001]
[1751212057767,14.65374261,2436.8,2436.7,0.11040217]
[1751212058070,22.85311687,2436.8,2436.7,0.11040217]
[1751212060949,14.10374261,2436.8,2436.7,0.11040217]
[1751212061235,20.83574261,2436.8,2436.7,0.11040217]
[1751212061642,14.95485534,2436.8,2436.7,0.11040217]
[1751212063357,14.40485534,2436.8,2436.7,0.11040217]
[1751212064267,14.95485534,2436.8,2436.7,0.11040217]
[1751212074963,44.95485534,2436.8,2436.7,0.11040217]
[1751212076605,23.42085534,2436.8,2436.7,0.11040217]
[1751212078463,23.41885534,2436.8,2436.7,0.11040217]
[1751212079281,53.41885534,2436.8,2436.7,0.11040217]
[1751212080778,53.41685534,2436.8,2436.7,0.11040217]
[1751212080972,53.41585534,2436.8,2436.7,0.11040217]
[1751212082293,0.55,2436.2,2435.7,0.001]
[1751212082497,4.317,2436.3,2434.9,0.2207911]
[1751212082498,4.65643889,2435.2,2434.9,0.2207911]
[1751212082683,4.10677618,2435.0,2434.9,0.2207911]
[1751212082887,0.55,2434.7,2433.5,0.11040217]
[1751212083072,0.55,2434.2,2433.6,0.8189]
[1751212083273,10.0,2434.0,2433.6,0.8189]
[1751212083503,3.34022103,2434.6,2433.6,0.8189]
[1751212083664,10.0,2435.0,2433.9,4.10858922]
[1751212083866,10.0,2435.0,2434.1,4.10829464]
[1751212083867,0.55,2434.8,2434.1,4.10829464]
[1751212084064,0.55,2434.9,2434.4,4.10770982]
[1751212084308,0.55,2434.9,2433.5,4.21957258]
[1751212084309,4.10683758,2435.0,2433.5,10.11040217]
[1751212084519,9.41727608,2435.4,2433.9,9.41727608]
[1751212084726,6.822,2435.3,2434.8,4.10710625]
[1751212085012,19.41727608,2435.2,2434.4,1.753]
[1751212085225,4.10665037,2435.1,2434.5,4.10752559]
[1751212085522,14.10712907,2434.8,2434.2,4.10798415]
[1751212085811,10.0,2434.6,2434.2,0.91579541]
[1751212086190,0.052,2434.5,2433.5,0.11140217]
[1751212086380,10.0,2434.4,2433.7,4.10885213]
[1751212086580,10.0,2434.4,2434.2,4.10810222]
[1751212086781,10.0,2434.4,2433.7,4.10896988]
[1751212086782,14.07694511,2435.1,2434.4,4.10766983]
[1751212086986,10.0,2434.9,2434.5,0.7787]
[1751212087317,13.31511983,2435.0,2434.5,0.7787]
[1751212087318,2.36833984,2435.0,2434.5,0.7787]
[1751212087479,0.50100318,2435.1,2434.7,4.10714084]
[1751212087822,0.50100318,2435.1,2434.2,4.10807503]
[1751212087823,6.841,2435.2,2435.0,0.7787]
[1751212088033,10.0,2435.2,2435.0,0.7787]
[1751212088229,7.14438147,2435.3,2435.0,4.8854448]
[1751212088584,7.14438147,2435.3,2435.0,0.7787]
[1751212088804,10.0,2435.2,2435.0,0.7787]
[1751212089131,0.30138147,2435.3,2435.0,0.7787]
[1751212089329,10.0,2435.2,2435.0,0.7787]
[1751212089833,12.3824871,2435.3,2435.0,0.7787]
[1751212089991,10.0,2435.1,2434.7,4.88590673]
[1751212090334,10.0,2435.1,2434.7,4.88585469]
[1751212090543,10.0,2435.1,2434.8,4.10710947]
[1751212090827,11.38943393,2435.1,2434.7,4.88590667]
[1751212091027,10.0,2435.1,2434.7,0.7787]
[1751212091229,10.3063211,2435.3,2434.7,0.7787]
[1751212091386,0.052,2435.8,2434.7,0.7787]
[1751212091585,8.608,2435.7,2435.2,4.88498396]
[1751212091883,10.0,2435.6,2435.2,4.88498396]
[1751212092218,16.855,2435.6,2435.2,4.88508747]
[1751212092394,16.855,2435.6,2435.2,0.7787]
[1751212092597,16.855,2435.6,2435.2,4.88504133]
[1751212092901,0.55,2435.6,2435.2,0.7787]
[1751212093112,7.403,2435.6,2435.3,4.10611776]
[1751212093307,0.55,2435.7,2435.2,0.7787]
[1751212093483,0.2048,2435.4,2435.2,0.7787]
[1751212093915,0.2048,2435.4,2435.2,4.88505673]
[1751212094215,0.2048,2435.4,2435.3,4.10627027]
[1751212094587,10.30318644,2435.8,2435.4,4.10606159]
[1751212094787,0.2048,2435.5,2435.4,4.10606159]
[1751212094983,0.2048,2435.5,2435.2,0.7787]
[1751212095202,0.2048,2435.5,2435.4,4.10610166]
[1751212095615,9.855,2436.4,2435.8,4.10540435]
[1751212095809,0.2048,2435.8,2435.6,4.1057229]
[1751212096199,0.2048,2435.8,2435.7,4.10559592]
[1751212097692,0.2048,2435.8,2435.7,4.93499592]
[1751212097881,0.2048,2436.4,2436.1,4.1049218]
[1751212098144,0.2048,2436.7,2436.6,4.10398548]
[1751212098346,0.2048,2436.7,2436.6,4.93338548]
[1751212098624,0.002,2436.8,2436.7,4.10391102]
[1751212099888,0.002,2436.8,2436.3,4.10457575]
[1751212100086,14.1039919,2436.7,2436.1,4.10482194]
[1751212100389,4.10412034,2436.6,2436.0,4.92611741]
[1751212101133,4.10445399,2436.4,2436.0,2.6461]
[1751212101312,10.55,2436.5,2436.0,4.92617976]
[1751212101497,1.23665842,2436.5,2436.1,4.1049218]
[1751212101825,10.0,2436.7,2436.1,4.10486255]
[1751212102039,0.002,2436.8,2436.0,0.8211]